Cogmind - Beta 11.1 @@@ ROGUE MODE // 2022.06.01 @ 14:52:30 Player: Savant Result: Destroyed by S-27 Virus with Autogun Performance ------------- Evolutions (5) 2500 Regions Visited (13) 2600 Robots Destroyed (237) 1185 Value Destroyed (9692) 9692 Prototype IDs (27) 540 Alien Tech Used (0) 0 Bonus (4388) 4388 TOTAL SCORE: 20905 Bonus ------- High Alert Combat Kills 698 Follower Combat Kills 978 Entered Garrisons 800 Used RIF Installer 2000 Friendly Fire -88 Cogmind --------- Core Integrity 0/1000 Matter 245/300 Energy 62/100 System Corruption 2% Temperature Cool (0) Movement Hovering (46) Location -5/Factory Parts ------- > --- POWER (1) -------- (None) > --- PROPULSION (4) --- Cooled Antigrav System Cooled Antigrav System Experimental Q-thruster > --- UTILITY (10) ----- Experimental Reaction Control System > --- WEAPON (2) ------- (None) > --- INVENTORY (5) ---- System Restoration Module Cooled Plasma Cannon Helical Railgun Heavy Rocket Launcher Power Sword Peak State ------------ > --- POWER ------------ Antimatter Reactor > --- PROPULSION ------- Heavy Treads Advanced VSS Leg Armored Wheel > --- UTILITY ---------- Huge Storage Unit Advanced Signal Interpreter Advanced Melee Analysis Suite Microactuators Improved Actuator Array Experimental Weapon Shielding Improved Heavy Armor Plating Reactive Plating Relay Coupler [NC] > --- WEAPON ----------- HERF Cannon Cooled Plasma Cannon > --- INVENTORY -------- Light Antimatter Reactor Compact Wheel Experimental Sensor Array Advanced Melee Analysis Suite Improved Medium Armor Plating Graphene Brace Relay Coupler [NC] Relay Coupler [Swarmer] Relay Coupler [Duelist] Relay Coupler [Behemoth] System Restoration Module HERF Cannon Cooled Plasma Cannon Cooled Plasma Cannon Heavy Rocket Launcher Improved Datajack Remote Datajack Power Maul Power Maul Power Sword Power Sword Spear [Rating: 91] Favorites ----------- Power Improved Deuterium Engine Engine Improved Deuterium Engine Power Core Enhanced Nuclear Core Reactor Antimatter Reactor Propulsion Armored Wheel Treads Advanced Treads Leg Armored Leg Wheel Armored Wheel Hover Unit Cooled Antigrav System Flight Unit Experimental Q-thruster Utility Huge Storage Unit Device Microactuators Storage Huge Storage Unit Processor Advanced Signal Interpreter Hackware System Shield Protection Improved Medium Armor Plating Weapon Spear Energy Gun Improved Medium Laser Energy Cannon Advanced Beam Cannon Ballistic Gun Improved Assault Rifle Ballistic Cannon Light Cannon Launcher Mini Grenade Launcher Special Weapon Remote Datajack Impact Weapon Heavy Hammer Slashing Weapon Power Sword Piercing Weapon Spear Special Melee Weapon Improved Datajack Build | -11 -10 -10 -9 -9 -8 -8 -7 -7 -6 -6 -6 -6 -5 ------- Run | Scr Mat Min Mat Min Mat Gar Fac Gar Fac Gar Fac Gar Fac Slots Evolved 10 | . . . 2 . 2 . 2 . 2 . . . 2 Power . | . . . . . . . . . . . . . . Propulsion 2 | . . . 1 . . . 1 . . . . . . Utility 8 | . . . 1 . 2 . 1 . 2 . . . 2 Weapon . | . . . . . . . . . . . . . . Parts Attached 418 | 6 15 9 26 6 47 10 54 14 43 30 59 22 77 Power 22 | 1 1 1 4 . 4 . 2 . 1 1 3 . 4 Engine 11 | 1 1 . 2 . 1 . 2 . 1 1 2 . . Core 6 | . . 1 2 . 3 . . . . . . . . Reactor 5 | . . . . . . . . . . . 1 . 4 Propulsion 59 | 2 3 3 6 2 10 . 10 2 1 3 5 4 8 Treads 16 | 1 2 1 2 . 3 . 2 . . 1 3 . 1 Leg 9 | . . . . . 2 . 5 . 1 . . . 1 Wheel 31 | 1 1 2 4 2 5 . 3 2 . 2 2 4 3 Hover 2 | . . . . . . . . . . . . . 2 Flight 1 | . . . . . . . . . . . . . 1 Utility 179 | 1 5 2 7 1 21 . 27 2 25 13 31 7 37 Device 80 | . 2 2 4 . 8 . 11 . 13 4 14 4 18 Storage 5 | 1 1 . . . 1 . 2 . . . . . . Processor 8 | . . . 1 . 2 . 2 . 1 1 . . 1 Hackware 31 | . . . . . 2 . 5 . 5 6 7 1 5 Protection 55 | . 2 . 2 1 8 . 7 2 6 2 10 2 13 Artifact . | . . . . . . . . . . . . . . Weapon 158 | 2 6 3 9 3 12 10 15 10 16 13 20 11 28 Energy Gun 4 | . . . 2 . 1 1 . . . . . . . Energy Cannon 18 | . . . 3 1 . . 1 . 4 . 2 1 6 Ballistic Gun 9 | 2 1 . 1 1 3 . . . . . 1 . . Ballistic Cannon 7 | . 4 2 1 . . . . . . . . . . Launcher 17 | . 1 1 2 1 1 3 . 4 1 . . 2 1 Special Weapon 16 | . . . . . 2 . 1 . . 3 4 1 5 Impact Weapon 29 | . . . . . 5 6 2 5 3 . 1 2 5 Slashing Weapon 34 | . . . . . . . 4 1 4 6 9 3 7 Piercing Weapon 9 | . . . . . . . 5 . 1 . . 2 1 Special Melee Weapon 15 | . . . . . . . 2 . 3 4 3 . 3 Unidentified Prototypes 7 | . . . 4 . 1 . . . . . 1 . 1 Corrupted Parts 1 | . . . . . . . . . . . . . 1 System Corruption 1 | . . . . . . . . . . . . . 1 Parts Lost 63 | . 3 3 1 . 9 1 11 1 . 6 5 1 22 Power 9 | . 1 . . . . . 2 . . 1 1 . 4 Propulsion 19 | . 1 1 . . 3 . 4 . . 2 1 1 6 Utility 28 | . . 2 1 . 6 1 3 1 . 3 2 . 9 Weapon 7 | . 1 . . . . . 2 . . . 1 . 3 Highest Loss Streak 15 | . 2 1 1 . 4 1 3 1 . 3 1 1 15 To Critical Strikes . | . . . . . . . . . . . . . . Average Slot Usage (%) 94 | . 99 99 98 100 93 85 96 100 92 92 94 91 90 Engine 5 | . 14 5 5 11 4 . 4 7 5 5 5 6 4 Core 1 | . . 8 5 . 4 9 1 . . . . . . Treads 9 | . 14 14 11 11 7 18 10 7 6 6 12 9 4 Leg 2 | . . . . . 1 . 4 7 6 6 . . . Wheel 14 | . 14 13 22 22 18 9 14 15 13 12 12 15 13 Device 7 | . 6 10 15 11 6 9 6 7 5 2 6 8 12 Storage 7 | . 14 14 11 11 9 9 7 7 6 6 6 6 4 Processor 5 | . . . . . 1 . . . 1 11 13 13 10 Hackware 13 | . . . . . 8 9 21 15 24 20 22 9 8 Protection 8 | . 7 2 4 11 13 4 7 14 7 11 3 7 11 Ballistic Gun 1 | . 14 . . 10 . . . . . . . . . Ballistic Cannon 2 | . 12 26 9 . . . . . . . . . . Impact Weapon 4 | . . . . . 15 15 4 2 3 . 2 3 3 Slashing Weapon 3 | . . . . . . . 5 4 1 5 5 5 4 Piercing Weapon 1 | . . . . . . . 3 7 5 . . 2 1 Naked Turns 4 | . . . . . . . . . . . . . 4 Heaviest Build 144 | 13 34 34 40 44 103 103 115 118 120 119 118 126 144 Greatest Support 36 | 16 20 20 26 24 36 12 24 24 24 24 28 36 36 Greatest Overweight (x) 11 | . 2 3 1 1 8 8 8 4 4 4 7 5 11 Average Overweight (x) 3 | . . 2 1 1 2 7 3 4 4 4 3 4 3 Largest Inventory Capacity 25 | 8 15 15 15 15 25 25 25 25 25 25 25 25 25 Average Capacity 22 | 7 9 15 15 15 18 25 25 25 25 25 25 25 24 Most Carried 25 | 6 11 15 15 15 23 23 25 25 25 25 25 25 25 Average Carried 21 | 3 8 13 14 14 16 23 24 24 24 23 24 24 22 Final Capacity 25 | 8 15 15 15 15 25 25 25 25 25 25 25 25 5 Final Carried 25 | 6 11 14 15 15 23 23 24 25 24 25 24 25 5 Class Distribution -------------------- 34% | Mutant 34% | Bothacker-Mutant 14% | Bothacker-Gladiator 9% | Hacker-Mutant 3% | Hacker-Gladiator 3% | Botlord-Mutant Dominant Class ---------------- Mutant | -10/Materials Mutant | -10/Mines Mutant | -9/Materials Mutant | -9/Mines Mutant | -8/Materials Mutant | -8/Garrison Hacker-Mutant | -7/Factory Bothacker-Mutant | -7/Garrison Bothacker-Mutant | -6/Factory Bothacker-Gladiator | -6/Garrison Bothacker-Gladiator | -6/Factory Bothacker-Mutant | -6/Garrison Bothacker-Mutant | -5/Factory Resources | -11 -10 -10 -9 -9 -8 -8 -7 -7 -6 -6 -6 -6 -5 ----------- Run | Scr Mat Min Mat Min Mat Gar Fac Gar Fac Gar Fac Gar Fac Matter Collected 5819 | 245 320 496 510 155 575 20 764 359 340 384 662 259 730 Remotely . | . . . . . . . . . . . . . . Salvage Created 9032 | . 371 441 615 158 1510 100 1322 543 93 187 863 706 2123 Parts 369 | . 28 20 44 6 42 18 61 24 2 6 38 14 66 Haulers Intercepted 6 | . 1 . 2 . 1 . . . . . 1 . 1 Recyclers Shooed 1 | . . 1 . . . . . . . . . . . Parts Field Recycled . | . . . . . . . . . . . . . . Retrieved Matter . | . . . . . . . . . . . . . . Parts Self-Destructed . | . . . . . . . . . . . . . . Prevented . | . . . . . . . . . . . . . . Kills | -11 -10 -10 -9 -9 -8 -8 -7 -7 -6 -6 -6 -6 -5 ------- Run | Scr Mat Min Mat Min Mat Gar Fac Gar Fac Gar Fac Gar Fac Combat Hostiles Destroyed 202 | . 12 11 19 9 33 14 22 21 1 4 10 17 29 Melee 67 | . . . . . 17 . 19 2 1 4 7 10 7 Guns 9 | . 4 . 2 3 . . . . . . . . . Cannons 27 | . 5 8 11 2 . . . . . . . . 1 AOE 66 | . 3 3 5 4 3 13 . 18 . . . 3 14 Classes Destroyed 19 | . 4 4 1 1 4 . 2 1 . . . . 2 Worker 8 | . . 1 1 . 2 . . . 2 . . . 2 Builder 4 | . . 1 1 . . . . . . . . . 2 Tunneler 1 | . . 1 . . . . . . . . . . . Hauler 6 | . 1 . 2 . 1 . . . . . 1 . 1 Recycler 10 | . . 2 . . 1 . 1 . . . 1 . 5 Operator 6 | . 1 . 1 . . . 1 . . . 3 . . Watcher 6 | . . . . . 2 . 1 . . . 1 1 1 Swarmer 53 | . 3 3 7 . 5 10 . 12 . 1 . 11 1 Cutter 3 | . . . . . . . . 3 . . . . . Saboteur 1 | . . . . . . . . . . . . . 1 Grunt 84 | . 9 8 10 3 17 3 11 4 . 1 1 5 12 Brawler 1 | . . . . . 1 . . . . . . . . Duelist 4 | . . . . . . . 3 . . . . . 1 Protector 1 | . . . . . . . . . . . . . 1 Sentry 25 | . . . 2 . 7 1 5 1 1 2 3 . 3 Specialist 9 | . . . . . 2 . . . . . 2 . 5 Hunter 6 | . . . . . 1 . 1 1 . . 2 . 1 Programmer 9 | . . . . . . . 2 . . . 2 1 4 Assembled 6 | . . . . 6 . . . . . . . . . Best Kill Streak 12 | . 6 8 5 4 6 7 4 12 2 2 3 5 12 Combat Bots Only 12 | . 5 3 4 4 6 7 3 12 1 2 2 5 8 Max Kills in Single Turn 9 | . 2 3 2 2 4 2 1 4 1 1 1 3 9 Gunslinging . | . . . . . . . . . . . . . . Exploded 6 | . 2 2 2 2 3 2 . 4 . . . 3 6 Melee 1 | . . . . . 1 . 1 1 1 1 1 1 1 Uniques/NPCs Destroyed . | . . . . . . . . . . . . . . Combat | -11 -10 -10 -9 -9 -8 -8 -7 -7 -6 -6 -6 -6 -5 -------- Run | Scr Mat Min Mat Min Mat Gar Fac Gar Fac Gar Fac Gar Fac Damage Taken 16822 | . 629 389 550 311 2023 994 2102 708 490 824 1216 1292 5294 Core 2492 | . 89 28 71 47 274 138 329 98 15 82 187 120 1014 Absorbed by Shields 147 | . . . . . . . . . . 40 . 107 . Redirected to Shielding 150 | . . . . . . . . . . . . . 150 Regen/Repaired (Parts) 2121 | . . . 122 . 304 . 87 . 286 . 190 639 493 Core Remaining (%) 56 | 100 . 53 . 70 . 25 . 39 . . . 52 . Volleys Fired 249 | . 58 39 41 17 5 14 1 16 13 7 15 7 16 Largest 2 | . 2 2 2 2 2 1 2 1 1 1 1 1 2 Hottest 124 | . 70 70 124 124 76 56 95 39 80 5 35 88 123 Shots Fired 394 | . 114 71 78 30 8 13 2 16 13 7 15 7 20 Gun 111 | . 72 . 15 19 4 1 . . . . . . . Cannon 198 | . 40 64 58 7 . . 1 . 13 . 2 1 12 Launcher 52 | . 2 7 5 4 2 12 . 16 . . . 1 3 Special 33 | . . . . . 2 . 1 . . 7 13 5 5 Kinetic 232 | . 112 64 42 12 2 . . . . . . . . Thermal 73 | . . . 31 14 4 1 2 . 13 . 2 . 6 Explosive 52 | . 2 7 5 4 2 12 . 16 . . . 1 3 Electromagnetic 7 | . . . . . . . . . . . . 1 6 Robot Hit Streak 10 | . 7 7 6 7 10 . 2 1 . 3 7 3 10 Robot Miss Streak 9 | . 4 4 2 9 3 4 . 3 . 1 4 2 2 Penetration Max . | . . . . . . . . . . . . . . Secondary Targets 1 | . 1 . . . . . . . . . . . . Max Gunslinging Chain 1 | . 1 . . . . . . . . . . . . Shots Hit Robots 576 | . 65 30 41 12 108 4 79 21 13 23 42 52 86 Core Hits 266 | . 19 19 29 16 26 21 25 31 1 3 7 15 54 Critical Kills 7 | . . . 1 . 4 . 1 . . . . . 1 Critical Parts Destroyed 48 | . 1 . . . 18 1 3 1 1 . 4 8 11 Critical Strikes 94 | . 2 4 2 . 23 1 11 5 1 4 8 12 21 Meltdown 1 | . . . 1 . . . . . . . . . . Destroy 1 | . 1 . . . . . . . . . . . . Blast 6 | . 1 4 1 . . . . . . . . . . Smash 55 | . . . . . 23 1 4 1 1 . 4 8 13 Sever 27 | . . . . . . . 5 4 . 4 4 2 8 Impale 4 | . . . . . . . 2 . . . . 2 . Melee Attacks 664 | . . . . . 166 6 139 35 43 26 57 64 128 Impact 335 | . . . . . 166 6 36 3 14 . 17 37 56 Slashing 252 | . . . . . . . 81 26 13 18 39 18 57 Piercing 45 | . . . . . . . 17 6 9 . . 9 4 Sneak Attacks 36 | . . . . . 4 . 7 . 5 1 7 3 9 Combat Hostiles 7 | . . . . . . . 2 . . 1 1 2 1 Follow-up Attacks 58 | . . . . . 15 . 11 3 . . 1 11 17 Damage Inflicted 26331 | . 999 828 1202 445 4084 1250 2856 2615 363 647 2144 2752 6146 Guns 746 | . 440 . 170 108 28 . . . . . . . . Cannons 1723 | . 373 523 593 105 . . 25 . . . . . 104 Explosions 7483 | . 186 299 439 232 159 1099 . 1836 . . . 196 3037 Melee 16347 | . . . . . 3882 151 2820 779 363 647 2144 2556 3005 Ramming 9 | . . 6 . . 3 . . . . . . . . Kinetic 1859 | . 813 523 387 108 28 . . . . . . . . Thermal 770 | . . . 376 105 12 . 36 . . . . . 241 Explosive 7281 | . 186 299 439 232 159 1099 . 1836 . . . 196 2835 Electromagnetic 65 | . . . . . . . . . . . . . 65 Impact 9025 | . . . . . 3882 151 791 77 363 . 718 1514 1529 Slashing 6494 | . . . . . . . 1710 634 . 647 1426 623 1454 Piercing 828 | . . . . . . . 319 68 . . . 419 22 Highest Corruption 8 | . . . . . 8 8 3 . . . 2 1 5 Average Corruption 5 | . . . . . 7 8 1 . . . 1 1 3 Corruption Purged 11 | . . . . . . . 3 . . . 2 1 5 Corruption Blocked . | . . . . . . . . . . . . . . Effects 97 | . . . . . 60 17 15 . . . . 1 4 Message Errors 17 | . . . . . 10 4 3 . . . . . . Matter Fused 30 | . . . . . 18 4 6 . . . . . 2 Heat Flow Errors 18 | . . . . . 12 2 3 . . . . 1 . Energy Discharges 13 | . . . . . 8 3 1 . . . . . 1 Parts Rejected 2 | . . . . . 1 . 1 . . . . . . Data Loss (minor) 8 | . . . . . 6 1 1 . . . . . . Data Loss (major) 3 | . . . . . 2 1 . . . . . . . Misfires 1 | . . . . . 1 . . . . . . . . Alerts 4 | . . . . . 2 1 . . . . . . 1 Weapon Failures 1 | . . . . . . 1 . . . . . . . Overload Shots . | . . . . . . . . . . . . . . Overflow Damage 4116 | . 11 23 . . 999 84 310 110 142 51 712 730 944 Projectiles 11 | . . . . . 11 . . . . . . . . Explosions 219 | . 11 23 . . . 25 . 31 . . . . 129 Melee 3886 | . . . . . 988 59 310 79 142 51 712 730 815 Knockbacks 48 | . 6 7 3 . 17 1 2 . . . 5 6 1 Impact 30 | . . . . . 15 1 2 . . . 5 6 1 Kinetic 15 | . 6 6 3 . . . . . . . . . . Secondary 3 | . . 1 . . 2 . . . . . . . . Self-Inflicted Damage 578 | . 34 54 93 26 . 148 . 68 . . . . 155 Shots 19 | . 2 2 3 1 . 4 . 3 . . . . 4 Rammed 2 | . . 1 . . 1 . . . . . . . . Targets Rammed 2 | . . 1 . . 1 . . . . . . . . Kicked . | . . . . . . . . . . . . . . Crushed . | . . . . . . . . . . . . . . Highest Temperature 301 | . 99 147 48 . 258 268 242 8 152 14 . 153 301 Average Temperature 61 | . 21 39 21 . 103 69 104 4 75 14 . 58 84 Received Heat Transfer 4656 | . 270 138 174 21 774 369 402 156 132 258 138 273 1551 Siege Activations . | . . . . . . . . . . . . . . Robots Corrupted . | . . . . . . . . . . . . . . Combat Hostiles . | . . . . . . . . . . . . . . Parts Fried 50 | . . . . . 17 . 5 1 2 . 6 11 8 Impact Corruptions 105 | . . . . . 38 4 8 1 4 . 12 22 16 Robots Melted 1 | . . . 1 . . . . . . . . . . Combat Hostiles 1 | . . . 1 . . . . . . . . . . Parts Melted 3 | . . . 3 . . . . . . . . . . Heat Transferred 1236 | . . . 740 185 37 . 74 . . . . . 200 Parts Sabotaged . | . . . . . . . . . . . . . . Parts Stolen . | . . . . . . . . . . . . . . Parts Stripped . | . . . . . . . . . . . . . . Power Chain Reactions . | . . . . . . . . . . . . . . Missiles Intercepted . | . . . . . . . . . . . . . . Alert | -11 -10 -10 -9 -9 -8 -8 -7 -7 -6 -6 -6 -6 -5 ------- Run | Scr Mat Min Mat Min Mat Gar Fac Gar Fac Gar Fac Gar Fac Peak Influence 1060 | . 217 269 535 270 426 719 562 1060 600 632 369 806 550 Initial 556 | . . . . 208 46 276 377 383 556 193 331 246 422 Average 318 | . 83 102 254 196 282 547 351 894 368 425 229 593 143 Maximum Alert Level 3 | . 1 1 2 1 2 3 2 3 2 2 1 3 2 Low Security (%) 27 | 100 98 74 27 42 23 . . . 5 1 37 . 73 Level 1 44 | . 1 25 48 57 74 19 68 2 53 25 62 22 16 Level 2 21 | . . . 23 . 2 59 31 16 41 72 . 45 10 Level 3 6 | . . . . . . 21 . 80 . . . 31 . Level 4 . | . . . . . . . . . . . . . . Level 5 . | . . . . . . . . . . . . . . High Security . | . . . . . . . . . . . . . . Max Security . | . . . . . . . . . . . . . . Squads Dispatched 47 | . 4 . 1 . 8 . 9 . 2 . 18 . 5 Investigation 13 | . 2 . 1 . 5 . 2 . . . 3 . . Extermination 10 | . . . . . . . 4 . 1 . 3 . 2 Reinforcement 21 | . 2 . . . 3 . 3 . 1 . 9 . 3 Assault . | . . . . . . . . . . . . . . Garrison 3 | . . . . . . . . . . . 3 . . Intercept . | . . . . . . . . . . . . . . Searches Triggered . | . . . . . . . . . . . . . . Construction Impeded 2 | . . . . . 1 . . . . . . . 1 Haulers Reinforced 2 | . . . . . . . . . . . 1 . 1 Active Scanning Responses . | . . . . . . . . . . . . . . Cargo Convoy Interrupts 2 | . . . . . . . . . . . 1 . 1 Alert ID Control Effect 1 | . . . . . . . . . . . . . 1 Stealth | -11 -10 -10 -9 -9 -8 -8 -7 -7 -6 -6 -6 -6 -5 --------- Run | Scr Mat Min Mat Min Mat Gar Fac Gar Fac Gar Fac Gar Fac Distress Signals 12 | . . 1 2 . 3 . 1 . 1 . 3 . 1 Communications Jammed . | . . . . . . . . . . . . . . Distress Signals . | . . . . . . . . . . . . . . Times Spotted 353 | . 20 12 27 11 57 16 40 21 14 20 30 28 57 Peak Tracking Total 13 | . 5 3 5 7 9 8 5 6 4 7 3 5 13 Tactical Retreats 20 | . 1 . . 1 3 1 7 1 . . . 3 3 Traps | -11 -10 -10 -9 -9 -8 -8 -7 -7 -6 -6 -6 -6 -5 ------- Run | Scr Mat Min Mat Min Mat Gar Fac Gar Fac Gar Fac Gar Fac Traps Triggered 21 | . 2 . . 1 1 3 4 1 1 6 . 1 1 Indirectly . | . . . . . . . . . . . . . . Trap Hack Attempts . | . . . . . . . . . . . . . . Triggered . | . . . . . . . . . . . . . . Disarmed . | . . . . . . . . . . . . . . Reprogrammed . | . . . . . . . . . . . . . . Reused . | . . . . . . . . . . . . . . Traps Extracted . | . . . . . . . . . . . . . . Installed . | . . . . . . . . . . . . . . Triggered 5 | . . . . . . . . . . . 5 . . Machines | -11 -10 -10 -9 -9 -8 -8 -7 -7 -6 -6 -6 -6 -5 ---------- Run | Scr Mat Min Mat Min Mat Gar Fac Gar Fac Gar Fac Gar Fac Machines Disabled 22 | . 1 . 1 . 1 . 1 2 1 3 4 1 7 Max in Single Turn 2 | . 1 . 1 . 1 . 1 1 1 1 . 1 2 Garrison Access 4 | . . . . . . . 1 . 2 . . . 1 Garrison Relay 6 | . . . . . . . . 2 . 3 . 1 . Machines Sabotaged . | . . . . . . . . . . . . . . Garrisons Compromised 1 | . . . . . . . . . . . 1 . . Overloaded Fab Kills . | . . . . . . . . . . . . . . Hacking | -11 -10 -10 -9 -9 -8 -8 -7 -7 -6 -6 -6 -6 -5 --------- Run | Scr Mat Min Mat Min Mat Gar Fac Gar Fac Gar Fac Gar Fac Machines Accessed 77 | . 4 . 8 1 14 . 16 . 13 . 11 . 10 Terminals 37 | . 3 . 3 . 8 . 7 . 6 . 4 . 6 Fabricators 8 | . . . . . . . 2 . 2 . 4 . . Repair Stations 9 | . . . 2 . 2 . 3 . 2 . . . . Recycling Units 6 | . 1 . 1 . 2 . . . . . 1 . 1 Scanalyzers 8 | . . . 2 . 1 . 2 . . . 1 . 2 Garrison Access 8 | . . . . . 1 . 2 . 3 . 1 . 1 Total Hacks 261 | . 8 . 21 1 56 . 60 . 37 . 50 . 28 Successful 165 | . 4 . 14 1 35 . 39 . 24 . 28 . 20 Failed 95 | . 4 . 7 . 21 . 21 . 13 . 21 . 8 Catastrophic 11 | . 2 . 1 . . . . . 2 . 5 . 1 Database Lockouts 1 | . . . . . . . . . . . 1 . . Manual 104 | . 7 . 6 . 20 . 16 . 17 . 28 . 10 Terminals 144 | . 7 . 9 . 39 . 31 . 24 . 18 . 16 Fabricators 29 | . . . . . . . 5 . 6 . 18 . . Repair Stations 24 | . . . 5 . 9 . 7 . 3 . . . . Recycling Units 10 | . 1 . 1 . 2 . . . . . 4 . 2 Scanalyzers 44 | . . . 6 . 5 . 15 . . . 9 . 9 Garrison Access 9 | . . . . . 1 . 2 . 4 . 1 . 1 Terminal Hacks 41 | . 2 . 1 1 13 . 11 . 5 . 4 . 4 Record 1 | . . . . . 1 . . . . . . . . Part Schematic 6 | . 1 . . . 1 . 2 . . . 1 . 1 Robot Schematic 1 | . . . . . . . . . . . . . 1 Robot Analysis 2 | . . . . . 2 . . . . . . . . Prototype ID Bank 5 | . . . . . 3 . . . 1 . 1 . . Open Door 1 | . . . . 1 . . . . . . . . . Branch Access Points 1 | . . . . . 1 . . . . . . . . Machine Index 1 | . . . . . . . 1 . . . . . . Terminal Index 2 | . . . . . . . 1 . 1 . . . . Scanalyzer Index 2 | . . . . . 1 . 1 . . . . . . Garrison Index 4 | . . . . . . . 1 . 1 . 1 . 1 Unreport Threat 3 | . 1 . . . 1 . . . 1 . . . . Locate Traps 4 | . . . 1 . 1 . 2 . . . . . . Recall Extermination 2 | . . . . . . . 2 . . . . . . Hauler Manifests 4 | . . . . . 1 . 1 . 1 . . . 1 Zone Layout 2 | . . . . . 1 . . . . . 1 . . Fabricator Hacks 10 | . . . . . . . 2 . 3 . 5 . . Network Status 3 | . . . . . . . 1 . 1 . 1 . . Load Schematic 4 | . . . . . . . 1 . 1 . 2 . . Build 3 | . . . . . . . . . 1 . 2 . . Repair Station Hacks 18 | . . . 4 . 8 . 4 . 2 . . . . Scan Component 9 | . . . 2 . 4 . 2 . 1 . . . . Repair 8 | . . . 2 . 4 . 1 . 1 . . . . Refit 1 | . . . . . . . 1 . . . . . . Recycling Unit Hacks 3 | . . . . . . . . . . . 2 . 1 Report Inventory 2 | . . . . . . . . . . . 1 . 1 Retrieve Components 1 | . . . . . . . . . . . 1 . . Scanalyzer 35 | . . . 6 . 3 . 10 . . . 7 . 9 Insert Component 18 | . . . 3 . 1 . 7 . . . 3 . 4 Analyze 17 | . . . 3 . 2 . 3 . . . 4 . 5 Garrison Access Hacks 9 | . . . . . 1 . 2 . 4 . 1 . 1 Unlock Access 4 | . . . . . 1 . 1 . 1 . 1 . . Seal Access 4 | . . . . . . . 1 . 2 . . . 1 Coupler Status 1 | . . . . . . . . . 1 . . . . Unauthorized Hacks 49 | . 2 . 3 . 10 . 10 . 10 . 9 . 5 Terminals 33 | . 1 . 2 . 8 . 7 . 8 . 3 . 4 Track 5 | . . . . . 2 . 1 . 2 . . . . Assimilate 5 | . . . . . 1 . 1 . 1 . 1 . 1 Botnet 16 | . 1 . 2 . 4 . 3 . 3 . 1 . 2 Disrupt 2 | . . . . . . . 1 . 1 . . . . Operators 5 | . . . . . 1 . 1 . 1 . 1 . 1 Fabricators 10 | . . . . . . . 3 . 2 . 5 . . Report 4 | . . . . . . . 1 . 1 . 2 . . Prioritize 1 | . . . . . . . . . . . 1 . . Liberate 3 | . . . . . . . 1 . 1 . 1 . . Recompile 2 | . . . . . . . 1 . . . 1 . . Repair Stations . | . . . . . . . . . . . . . . Recycling Units 6 | . 1 . 1 . 2 . . . . . 1 . 1 Reject 1 | . . . . . . . . . . . . . 1 Recyclers 1 | . . . . . . . . . . . 1 . . Tunnel 4 | . 1 . 1 . 2 . . . . . . . . Scanalyzers . | . . . . . . . . . . . . . . Garrison Access . | . . . . . . . . . . . . . . Data Cores Recovered 2 | . . . 1 . . . . . 1 . . . . Used 1 | . . . 1 . . . . . . . . . . Hacking Detections 57 | . 3 . 6 . 10 . 14 . 8 . 8 . 8 Full Trace Events 6 | . . . 1 . 2 . 1 . . . 2 . . Feedback Events . | . . . . . . . . . . . . . . Feedback Blocked . | . . . . . . . . . . . . . . Robot Schematics Acquired 1 | . . . . . . . . . . . . . 1 Robots Built . | . . . . . . . . . . . . . . Authchips . | . . . . . . . . . . . . . . Time . | . . . . . . . . . . . . . . Total Robot Build Rating . | . . . . . . . . . . . . . . Part Schematics Acquired 18 | . 1 . 3 . . . 5 . . . 4 . 5 Parts Built 4 | . . . . . . . . . 1 . 3 . . Authchips 2 | . . . . . . . . . 1 . 1 . . Time 346 | . . . . . . . . . 204 . 142 . . Total Part Build Rating 23 | . . . . . . . . . 8 . 15 . . Parts Repaired 8 | . . . 2 . 4 . 1 . 1 . . . . Time 240 | . . . 64 . 116 . 16 . 44 . . . . Parts Recycled . | . . . . . . . . . . . . . . Recycled Matter . | . . . . . . . . . . . . . . Retrieved Matter . | . . . . . . . . . . . . . . Retrieved Components 3 | . . . . . . . . . . . 3 . . Parts Scanalyzed 13 | . . . 3 . 1 . 2 . . . 3 . 4 Part Schematics Acquired 13 | . . . 3 . . . 3 . . . 3 . 4 Parts Damaged 1 | . . . . . . . 1 . . . . . . Bothacking | -11 -10 -10 -9 -9 -8 -8 -7 -7 -6 -6 -6 -6 -5 ------------ Run | Scr Mat Min Mat Min Mat Gar Fac Gar Fac Gar Fac Gar Fac Used RIF Installer 4 | . . . . . . 1 . 1 . 1 . 1 . Patrol Navigation 1 | . . . . . . . . 1 . . . . . Alert ID Control 1 | . . . . . . . . . . . . 1 . Structural Interface 1 | . . . . . . . . . . 1 . . . Robots Hacked 35 | . . . . . . . 3 . 4 9 6 3 10 Non-combat 11 | . . . . . . . . . 2 . 2 . 7 Combat 24 | . . . . . . . 3 . 2 9 4 3 3 Robot Hacks Applied 40 | . . . . . . . 3 . 6 9 6 3 13 parse_system 1 | . . . . . . . . . 1 . . . . no_distress 1 | . . . . . . . . . 1 . . . . ignore_repairs 1 | . . . . . . . . . 1 . . . . drop_inventory 2 | . . . . . . . . . . . . . 2 purge_threat 3 | . . . . . . . . . . . . . 3 locate_traps 2 | . . . . . . . . . . . 1 . 1 map_route 2 | . . . . . . . . . . . . . 2 overload_power 1 | . . . . . . . . . . 1 . . . amplify_resonance 1 | . . . . . . . . . . . . . 1 reboot_system 4 | . . . . . . . . . . 1 1 2 . overwrite_iff 4 | . . . . . . . 2 . . 1 . 1 . streamctrl_high 1 | . . . . . . . 1 . . . . . . formatsys_low 3 | . . . . . . . . . 1 . 1 . 1 formatsys_high 14 | . . . . . . . . . 2 6 3 . 3 Relay Couplers Released 35 | . . . . . . . 3 7 4 14 . 5 2 Machine Destruction 35 | . . . . . . . 3 7 4 14 . 5 2 Attached 20 | . . . . . . . 2 . 4 6 3 1 4 Fabnet Peak Effective % . | . . . . . . . . . . . . . . Robots Rewired . | . . . . . . . . . . . . . . Allies Hacked 2 | . . . . . . . . . . . . . 2 Hacks Repelled . | . . . . . . . . . . . . . . Allies | -11 -10 -10 -9 -9 -8 -8 -7 -7 -6 -6 -6 -6 -5 -------- Run | Scr Mat Min Mat Min Mat Gar Fac Gar Fac Gar Fac Gar Fac Total Allies 32 | . . . . 1 . . 4 . 6 7 8 1 5 Largest Group 6 | . . . . 1 . . 2 . 6 4 5 2 5 Highest-Rated Group 195 | . . . . 31 . . 46 . 164 128 195 52 138 Highest-Rated Ally 90 | . . . . 31 . . 30 . 32 41 90 29 47 Total Orders 44 | . . . . . . . . . 3 12 7 9 13 STAY 17 | . . . . . . . . . 1 6 1 4 5 ROAM 1 | . . . . . . . . . . 1 . . . FOLLOW 13 | . . . . . . . . . 1 5 2 1 4 AID 10 | . . . . . . . . . 1 . 1 4 4 EXPLORE 3 | . . . . . . . . . . . 3 . . Ally Attacks 159 | . . . . . . . 6 . 37 32 70 3 11 Total Damage 4419 | . . . . . . . 140 . 770 1135 2133 38 203 Kills 40 | . . . . . . . 2 . 12 9 15 . 2 Allies Corrupted . | . . . . . . . . . . . . . . Allies Melted . | . . . . . . . . . . . . . . Intel | -11 -10 -10 -9 -9 -8 -8 -7 -7 -6 -6 -6 -6 -5 ------- Run | Scr Mat Min Mat Min Mat Gar Fac Gar Fac Gar Fac Gar Fac Robot Analysis Total 2 | . . . . . 2 . . . . . . . . Derelict Logs Recovered 3 | . . 1 . 2 . . . . . . . . . Drone Launches 2 | . . . . . . . . . . . 2 . . Drone Recoveries . | . . . . . . . . . . . . . . Exploration | -11 -10 -10 -9 -9 -8 -8 -7 -7 -6 -6 -6 -6 -5 ------------- Run | Scr Mat Min Mat Min Mat Gar Fac Gar Fac Gar Fac Gar Fac Turns Passed 18945 | 60 888 888 766 698 2264 551 2940 796 1939 1144 2658 1258 2095 Spaces Moved 10502 | 46 519 565 494 594 1198 233 1564 424 1104 621 1384 679 1077 Core 6 | 1 . . . . . . . . . . . . 5 Treads 9 | . 4 5 . . . . . . . . . . . Legs . | . . . . . . . . . . . . . . Wheels 10477 | 45 515 560 494 594 1198 233 1564 424 1104 621 1384 679 1062 Hover 5 | . . . . . . . . . . . . . 5 Flight 5 | . . . . . . . . . . . . . 5 Fastest Speed 20 | 50 100 115 100 105 105 195 135 150 150 150 135 131 20 Average Speed 138 | 98 111 123 104 105 128 200 148 150 150 150 144 148 145 Slowest Speed 255 | 100 160 240 105 105 210 210 210 150 150 150 195 160 255 Overloaded Moves 2 | . . . . . . . . . . . . . 2 Propulsion Burnouts . | . . . . . . . . . . . . . . Robots Hopped . | . . . . . . . . . . . . . . Cave-ins Triggered 1 | . . . . . . . 1 . . . . . . Exploration Rate (%) 51 | 3 55 93 40 99 72 56 39 66 22 75 31 51 25 Regions Visited 13 Branch Regions 2 Pre-discovered Areas 5 | . 1 . 1 1 2 . . . . . . . . Known Exits Taken 6 | . . . 1 1 1 . 1 . 1 . 1 . . Unknown Exits Taken 3 | 1 1 1 . . . . . . . . . . . Scrap Searched 5 | . . 1 . 4 . . . . . . . . . Spaces Dug 161 | . . . 22 8 17 13 30 3 19 . 18 . 31 Terrain Destroyed 475 | . 10 28 40 17 28 58 30 131 19 . 18 19 77 Melee 110 | . . . . . 17 . 30 3 14 . 16 . 30 Projectile 9 | . . . . . . . . . 5 . 2 . 2 AOE 356 | . 10 28 40 17 11 58 . 128 . . . 19 45 Terrain Rammed . | . . . . . . . . . . . . . . Walls Destroyed . | . . . . . . . . . . . . . . Machines Disabled . | . . . . . . . . . . . . . . Actions | -11 -10 -10 -9 -9 -8 -8 -7 -7 -6 -6 -6 -6 -5 --------- Run | Scr Mat Min Mat Min Mat Gar Fac Gar Fac Gar Fac Gar Fac Total 13619 | 57 724 682 665 638 1655 286 2032 530 1316 805 1943 845 1441 Wait 1415 | . 111 61 68 11 228 8 202 26 80 38 362 78 142 Move 10491 | 45 518 564 493 593 1198 232 1564 423 1104 619 1383 678 1077 Hop . | . . . . . . . . . . . . . . Pick Up 181 | 6 13 5 14 5 19 . 45 7 13 14 24 4 12 Fast Attach 85 | 6 2 2 10 . 17 . 12 . 4 6 15 1 10 Attach 97 | . 3 2 5 . 5 . 20 1 8 18 17 2 16 Detach 46 | . . 1 2 . 6 . 7 . 4 10 11 2 3 Swap 236 | . 10 5 11 6 25 10 22 13 31 6 27 19 51 Drop 169 | . 9 2 21 6 14 . 39 7 16 9 36 3 7 Fire 249 | . 58 39 41 17 5 14 1 16 13 7 15 7 16 Melee 565 | . . . . . 137 6 120 29 40 26 53 51 103 Ram 1 | . . 1 . . . . . . . . . . . Kick . | . . . . . . . . . . . . . . Crush 1 | . . . . . 1 . . . . . . . . Escape Stasis 72 | . . . . . . 16 . 8 . 48 . . . Rewire 11 | . . . . . . . . . 3 4 . . 4 Trap . | . . . . . . . . . . . . . . Miscellaneous . | . . . . . . . . . . . . . . Route ------- -11/Scrapyard -10/Materials (discovered 3 exits: *Mat x2 / [*Min]) -10/Mines (discovered 2 exits: *Mat / *Exi) -9/Materials (discovered 2 exits: *Mat / *Min) -9/Mines (discovered 2 exits: *Mat x2) -8/Materials (discovered 3 exits: *Fac x2 / Gar) -8/Garrison (discovered 2 exits: *Fac x2) -7/Factory (discovered 4 exits: *Fac / [*Low x2] / Gar) -7/Garrison (discovered 3 exits: *Fac x3) -6/Factory -6/Garrison (discovered 3 exits: *Fac x3) -6/Factory (discovered 2 exits: [*Low] / Gar) -6/Garrison -5/Factory (discovered 2 exits: *Fac / *Upp) History --------- Turn | Location | Event 8 | -11/Scrapyard | Discovered new exit (range 16) 61 | -11/Scrapyard | Entered Materials 306 | -10/Materials | Build established: Mutant 441 | -10/Materials | Discovered new exit (range 7) 629 | -10/Materials | Discovered new exit (range 13) 914 | -10/Materials | Discovered new exit (range 15) 949 | -10/Materials | Entered Mines 964 | -10/Mines | Identified exit to Exiles 1200 | -10/Mines | Excavation squad dispatched 1200 | -10/Mines | A large section of the Mines collapsed 1450 | -10/Mines | Excavation squad dispatched 1551 | -10/Mines | Deemed a non-threat by the Exiles lab entrance 1822 | -10/Mines | Discovered new exit (range 15) 1837 | -10/Mines | Entered Materials 1837 | -9/Materials | Evolved 2 slots: Propulsion x1, Utility x1 2093 | -9/Materials | Repaired Lgt. Nuclear Core 2307 | -9/Materials | Discovered new exit (range 10) 2431 | -9/Materials | Repaired Lgt. Treads? 2499 | -9/Materials | Discovered new exit (range 11) 2511 | -9/Materials | Identified exit to Materials 2559 | -9/Materials | Identified exit to Mines 2603 | -9/Materials | Entered Mines 2604 | -9/Mines | Assembled infested the area 2609 | -9/Mines | Assisted by a Guerilla fighting off Assembled 2703 | -9/Mines | Received a Mining Laser from a helpful Derelict 2790 | -9/Mines | Discovered exit to Materials (range 15) 2805 | -9/Mines | Met a Derelict who couldn't figure out how to use a Trap Extractor 2960 | -9/Mines | Learned Materials terminal intel 2964 | -9/Mines | Learned location of Storage (-7) 3029 | -9/Mines | Found a damaged Exp. Sensor Array with a note attached 3032 | -9/Mines | Found Prototype Device 3083 | -9/Mines | Discovered exit to Materials (range 5) 3301 | -9/Mines | Entered Materials 3301 | -8/Materials | Evolved 2 slots: Utility x2 3302 | -8/Materials | Loaded intel: 12 terminal locations 3419 | -8/Materials | Identified Exp. Sensor Array 3583 | -8/Materials | Lost 4 parts (1n3u) 3689 | -8/Materials | Repaired Grenade Launcher 3716 | -8/Materials | Repaired Lgt. Armor Plating? 3821 | -8/Materials | Repaired Lgt. Armor Plating 4440 | -8/Materials | Discovered new exit (range 9) 4577 | -8/Materials | Repaired Hrd. Medium Armor Plating? 4776 | -8/Materials | Discovered new exit (range 5) 5565 | -8/Materials | Identified exit to Garrison 5565 | -8/Materials | Entered Garrison 5647 | -8/Garrison | Triggered checkpoint 5657 | -8/Garrison | Triggered checkpoint 5660 | -8/Garrison | Core integrity fell below 50% 5692 | -8/Garrison | Destroyed 7 combat bots 5841 | -8/Garrison | Discovered new exit (range 13) 6016 | -8/Garrison | Discovered new exit (range 13) 6051 | -8/Garrison | Installed Relay Interface Framework 6116 | -8/Garrison | Entered Factory 6116 | -7/Factory | Evolved 2 slots: Propulsion x1, Utility x1 6222 | -7/Factory | Discovered new exit (range 15) 6407 | -7/Factory | Discovered new exit (range 6) 6718 | -7/Factory | Build established: Hacker-Mutant 7005 | -7/Factory | Repaired Arm. Wheel? 7304 | -7/Factory | Build established: Hacker-Gladiator 7896 | -7/Factory | Lost 3 parts (1p1u1w) 8103 | -7/Factory | Build established: Hacker-Mutant 8115 | -7/Factory | Discovered new exit (range 12) 8738 | -7/Factory | Crushed by falling debris 9056 | -7/Factory | Identified exit to Garrison 9056 | -7/Factory | Entered Garrison 9101 | -7/Garrison | Core integrity fell below 50% 9138 | -7/Garrison | Destroyed 7 combat bots 9140 | -7/Garrison | Triggered checkpoint 9158 | -7/Garrison | Garrison Relay disabled 9235 | -7/Garrison | Triggered checkpoint 9263 | -7/Garrison | Destroyed 12 combat bots 9307 | -7/Garrison | Discovered new exit (range 12) 9470 | -7/Garrison | Triggered checkpoint 9473 | -7/Garrison | Build established: Bothacker-Mutant 9505 | -7/Garrison | Garrison Relay disabled 9566 | -7/Garrison | Discovered new exit (range 12) 9636 | -7/Garrison | Triggered checkpoint 9804 | -7/Garrison | Discovered new exit (range 7) 9820 | -7/Garrison | Expanded RIF knowledge: Patrol Navigation 9852 | -7/Garrison | Entered Factory 9852 | -6/Factory | Evolved 2 slots: Utility x2 9917 | -6/Factory | Repaired Imp. Deuterium Engine 10757 | -6/Factory | Fabricated Exp. Sensor Array? 11791 | -6/Factory | Identified exit to Garrison 11791 | -6/Factory | Entered Garrison 11812 | -6/Garrison | Triggered checkpoint 11896 | -6/Garrison | Triggered checkpoint 11928 | -6/Garrison | Garrison Relay disabled 12067 | -6/Garrison | Build established: Bothacker-Gladiator 12135 | -6/Garrison | Lost 3 parts (1p2u) 12144 | -6/Garrison | Triggered checkpoint 12158 | -6/Garrison | Triggered checkpoint 12222 | -6/Garrison | Discovered new exit (range 15) 12377 | -6/Garrison | Discovered new exit (range 10) 12389 | -6/Garrison | Identified exit to Factory 12521 | -6/Garrison | Discovered exit to Factory (range 15) 12562 | -6/Garrison | Expanded RIF knowledge: Structural Interface 12604 | -6/Garrison | Triggered checkpoint 12661 | -6/Garrison | Garrison Relay disabled 12822 | -6/Garrison | Triggered checkpoint 12857 | -6/Garrison | Garrison Relay disabled 12935 | -6/Garrison | Entered Factory 12935 | -6/Factory | Accompanied by 4 allies 13600 | -6/Factory | Fabricated Power Sword (x2) 13722 | -6/Factory | Discovered new exit (range 12) 13838 | -6/Factory | Cargo convoy interrupted 14200 | -6/Factory | Central database locked down 14870 | -6/Factory | Fabricated Imp. Hacking Suite (x1) 14920 | -6/Factory | Build established: Bothacker-Mutant 15314 | -6/Factory | Garrison activated, responded to threat 15588 | -6/Factory | Identified exit to Garrison 15593 | -6/Factory | Entered Garrison 15593 | -6/Garrison | Accompanied by 1 ally 15601 | -6/Garrison | Expanded RIF knowledge: Alert ID Control 15696 | -6/Garrison | Spotted B-75 Beast 15927 | -6/Garrison | Build established: Botlord-Mutant 16118 | -6/Garrison | Triggered checkpoint 16452 | -6/Garrison | Triggered checkpoint 16473 | -6/Garrison | Build established: Bothacker-Mutant 16482 | -6/Garrison | Garrison Relay disabled 16521 | -6/Garrison | Discovered new exit (range 4) 16790 | -6/Garrison | Spotted B-75 Beast 16849 | -6/Garrison | Identified exit to Factory 16851 | -6/Garrison | Entered Factory 16851 | -5/Factory | Accompanied by 1 ally 16851 | -5/Factory | Evolved 2 slots: Utility x2 16852 | -5/Factory | Discovered new exit (range 8) 16904 | -5/Factory | Identified exit to Factory 17756 | -5/Factory | Discovered new exit (range 12) 17914 | -5/Factory | P-70 Sage assimilated allied Veteran 6a 17975 | -5/Factory | Identified exit to Upper Caves 18907 | -5/Factory | Cargo convoy interrupted 18928 | -5/Factory | Core integrity fell below 50% 18928 | -5/Factory | Released all parts (4) 18932 | -5/Factory | Core integrity fell below 20% 18942 | -5/Factory | Destroyed 8 combat bots 18946 | -5/Factory | Destroyed by S-27 Virus with Autogun Last Messages --------------- 18931_ Acquired Cld. Antigrav System. 18932_ Acquired Graviton Reactor. 18933_ K-01 Serf collects debris. 18934_ X-77 Beamer IFF system glitched. 18934_ S-27 Virus destroyed. 18935_ U-05 Engineer builds a Wall. 18936_ Acquired Exp. Q-thruster. 18937_ K-01 Serf collects debris. 18937_ Graviton Reactor destroyed. 18938_ Acquired Exp. Reaction Control System. 18939_ U-05 Engineer builds a Wall. 18940_ Acquired Graviton Reactor. 18940_ K-01 Serf collects debris. 18942_ Graviton Reactor destroyed. 18942_ Acquired Cld. Antigrav System. 18943_ U-05 Engineer lays Concrete. 18943_ K-01 Serf collects debris. 18944_ U-05 Engineer lays Concrete. 18945_ Acquired Helical Railgun. 18945_ U-05 Engineer builds a Wall. Map ----- +----------------------------------------------------+ | ?????????????????????????????????????????????????? | | ?????????????????????????????????????????????????? | | ?????????????????????????????????????????????????? | | ?????????????????????????????????????????????????? | | ?????????????????????????????????????????????????? | | ?????????????????????????????????????????????????? | | ?????????????????????????????????????????????????? | | ?????????????????????????????????????????????????? | | ?????????????????????????????????????????????????? | | ?????????????????????????????????????????????????? | | ??????????????? ?????????????????????????????????? | | ??????????????# ????????????????????????????????? | | ??????????????# ????????????????????????????????? | | ??????????????# ???????????????????????????????? | | ??????????????# ???????????????????????????????? | | ??????????????# ??#######??????????????????????? | | ?????????????## #?# #?????????????????????? | | ?????????????# ?# """#?????????????????????? | | ???????# ##### ## """#?????????????????????? | | ??????? # """#?????????????????????? | | ??????? # / ###+#######???????????? | | ??????? = # !/!! # #???????????? | | ?????? % x]#*!!]/ """?????????????? | | ?????? %! []%]!!]=! """ ????????????? | | ???? [ ]]%!!/ ! !! """ +???????????? | | ?????? [ !!!/ !@ ]=!! #???????????? | | ?????? = [%!!= ! t ! #???????????? | | ??????? =!=%[ ][ #???????????? | | ?????? !%!x %[ =[!%s]# #???????????? | | ?????? [ =*! *#########+#???????????? | | ??????? ######?????????????? | | ???????#" "##;## k ???????????? | | ?????????#??#??# #######????????????? | | ???????######??# ##??????????????????? | | ???????# #??# #???????????????????? | | ???????# !#??# #???????????????????? | | ???????# !!#??# #???????????????????? | | ???????# %%#### ## """ ?????????????? | | ???????# !![+%% + """ ?????????????? | | ???????# % ##########+##### ## ?????????? | | ???????# [=#??????? ??# #???#####???????????? | | ???????# #????? ! """ #?# #???????????????????? | | ???????# #??? """ #?# #???????????????????? | | ???????######??# "" """ #?# #???????????????????? | | ???????????????# " #?# #???????????????????? | | ???????????????# "F #?# ##??????????????????? | | ???????????????# "" #?# ##??????????????????? | | ???????????????# ! ### ###?????????????????? | | ???????????????#?###?###?# #?????????????????? | | ?????????????############# ####??????????????? | +----------------------------------------------------+ Best States ------------- Heat Dissipation 67 Energy Generation 21 Energy Capacity 325 Matter Stores 300 Matter Capacity 300 Sight Range 16 Robot Scan Range 20 Terrain Scan Range 14 Terrain Scan Density 10 Armor Coverage 1050 Resistance: KI 20 Resistance: EM 20 Power Shielding 66 Weapon Shielding 90 Melee Speed Boost 20 Evasion (%) 80 Targeting Accuracy 8 Melee Accuracy 8 Recoil Reduction 4 Offensive Hacking 20 Defensive Hacking 10 Relay Coupler Types 3 Relay Coupler Value 65 Authchip Count 1 Item Schematics ----------------- Huge Storage Unit | -10/Materials | Hacked Hacking Suite | -9/Materials | Scanalyzed Datajack | -9/Materials | Scanalyzed Arm. Wheel | -9/Materials | Scanalyzed Imp. Transmission Jammer | -7/Factory | Hacked Adv. Signal Interpreter | -7/Factory | Hacked Exp. Sensor Array | -7/Factory | Scanalyzed System Restoration Module | -7/Factory | Scanalyzed System Shield | -7/Factory | Scanalyzed Power Sword | -6/Factory | Scanalyzed Adv. Melee Analysis Suite | -6/Factory | Scanalyzed Imp. Actuator Array | -6/Factory | Scanalyzed Imp. Hacking Suite | -6/Factory | Hacked Graphene Brace | -5/Factory | Scanalyzed Adv. Hacking Suite | -5/Factory | Hacked Imp. Heavy Armor Plating | -5/Factory | Scanalyzed Cld. Plasma Cannon | -5/Factory | Scanalyzed Microactuators | -5/Factory | Scanalyzed Robot Schematics ------------------ P-70 Sage | -5/Factory | Hacked Fabricated ------------ Exp. Sensor Array | x1 | -6/Factory | Authchip Power Sword | x2 | -6/Factory | Authchip Imp. Hacking Suite | x1 | -6/Factory Alien Tech Used ----------------- None Achievements -------------- None Challenges ------------ None Game ------ Seed MetafiberSeismicCapacitor Manual? 0 Play Time 03:15:10 Cumulative 262.6 hours Start 2022.06.01 @ 11:38:18 End 2022.06.01 @ 14:52:30 Sessions 1 Manual Loads 0 Difficulty Rogue Special Mode None Game No. 78 Rogue 78 Adventurer 0 Explorer 0 Win Type - Total 14 Types 12/0/2/0/0/0/0/0/0 Lore% 85 Gallery% 85 Achievement% 72 Wizard Run 0 Options --------- ASCII 0 Keyboard 0 Movement Numpad Keybinds 0 Fullscreen 1 Font 14/SmallcapsGlow Map View 84x54 Tactical HUD 1 Map Filters NONE Filters NONE Steam 1 RUN: 3eb6b6f7-efd6-49db-b6de-2dcab2d93e04